fUSD/lending_fUSD_20250209
["ID","MTS","AMOUNT","RATE_DAILY","PERIOD"]
[352373492,1739065869216,-814.38,0.00010952,2]
[352373493,1739065869227,-1161.87,0.00010952,2]
[352373494,1739065869238,-304.88558797,0.00010952,2]
[352373495,1739065869247,-1281.49,0.00010952,2]
[352373496,1739065869258,-1000.0,0.00010952,2]
[352373497,1739065869268,-263.42389043,0.00010952,2]
[352373498,1739065869280,-613.34457683,0.00010952,2]
[352373499,1739065869291,-1007.35,0.00010952,2]
[352373500,1739065869302,-500.0,0.00010952,2]
[352373501,1739065869313,-500.0,0.00010952,2]
[352373502,1739065869323,-500.0,0.00010952,2]
[352373503,1739065869332,-1979.78,0.00010952,2]
[352373504,1739065869341,-500.0,0.00010952,2]
[352373505,1739065869350,-2191.6,0.00010952,2]
[352373506,1739065869359,-500.0,0.00010952,2]
[352373507,1739065869369,-505.18927304,0.00010952,2]
[352373508,1739065869378,-500.0,0.00010952,2]
[352373509,1739065869388,-508.22557529,0.00010952,2]
[352373510,1739065869398,-500.0,0.00010952,2]
[352373511,1739065869407,-150.0,0.00010959,2]
[352373512,1739065869416,-177.6955627,0.00010959,2]
[352373513,1739065869426,-502.38917382,0.00010973,2]
[352373514,1739065869435,-644.07949201,0.00010989,2]
[352373515,1739065869444,-5291.1192494,0.00010989,2]
[352373516,1739065869453,-500.97435702,0.0001099,2]
[352373517,1739065869463,-305.58301438,0.0001099,2]
[352373518,1739065869473,-262.66,0.00010992,2]
[352373519,1739065869482,-150.0,0.00010992,2]
[352373520,1739065869492,-493.56371278,0.00010997,2]
[352373521,1739065869502,-799.77696101,0.00010998,2]
[352373522,1739065869511,-985.27,0.00010999,2]
[352373523,1739065869521,-545.9,0.00010999,2]
[352373524,1739065869530,-1305.2253969,0.00010999,2]
[352373525,1739065869540,-570.35343302,0.00010999,2]
[352373526,1739065869550,-300.0,0.00010999,2]
[352373527,1739065869559,-300.0,0.00010999,2]
[352373528,1739065869568,-300.0,0.00010999,2]
[352373529,1739065869577,-922084.71475753,0.00011,2]
[352373530,1739065869586,-1017.77,0.00011,2]
[352373531,1739065869596,-239087.89,0.00011,2]
[352373532,1739065869605,-1000.82,0.00011,2]
[352373533,1739065869615,-30091.92377217,0.00011,2]
[352373534,1739065869624,-99790.69107968,0.00011,2]
[352373535,1739065869633,-250.0,0.00011,2]
[352373536,1739065869642,-250.0,0.00011,2]
[352373537,1739065869652,-250.0,0.00011,2]
[352373538,1739065869661,-250.0,0.00011,2]
[352373539,1739065869670,-250.0,0.00011,2]
[352373540,1739065869679,-250.0,0.00011,2]
[352373541,1739065869689,-250.0,0.00011,2]
[352373542,1739065869698,-250.0,0.00011,2]
[352373543,1739065869708,-250.0,0.00011,2]
[352373544,1739065869717,-250.0,0.00011,2]
[352373545,1739065869727,-250.0,0.00011,2]
[352373546,1739065869737,-250.0,0.00011,2]
[352373547,1739065869746,-250.0,0.00011,2]
[352373548,1739065869755,-250.0,0.00011,2]
[352373549,1739065869764,-250.0,0.00011,2]
[352373550,1739065869773,-250.0,0.00011,2]
[352373551,1739065869783,-250.0,0.00011,2]
[352373552,1739065869792,-250.0,0.00011,2]
[352373553,1739065869801,-250.0,0.00011,2]
[352373554,1739065869811,-250.0,0.00011,2]
[352373555,1739065869820,-250.0,0.00011,2]
[352373556,1739065869829,-250.0,0.00011,2]
[352373557,1739065869838,-250.0,0.00011,2]
[352373558,1739065869847,-250.0,0.00011,2]
[352373559,1739065869857,-250.0,0.00011,2]
[352373560,1739065869866,-250.0,0.00011,2]
[352373561,1739065869875,-250.0,0.00011,2]
[352373562,1739065869885,-250.0,0.00011,2]
[352373563,1739065869897,-250.0,0.00011,2]
[352373564,1739065869907,-250.0,0.00011,2]
[352373565,1739065869917,-250.0,0.00011,2]
[352373566,1739065869926,-250.0,0.00011,2]
[352373567,1739065869938,-250.0,0.00011,2]
[352373568,1739065869947,-250.0,0.00011,2]
[352373569,1739065869956,-250.0,0.00011,2]
[352373570,1739065869967,-250.0,0.00011,2]
[352373571,1739065869977,-250.0,0.00011,2]
[352373572,1739065869987,-250.0,0.00011,2]
[352373573,1739065869996,-250.0,0.00011,2]
[352373574,1739065870005,-250.0,0.00011,2]
[352373575,1739065870016,-253.1,0.00011,2]
[352373576,1739065870025,-247796.76653504,0.00011,2]
[352373577,1739065870034,-30000.0,0.00011,2]
[352373578,1739065870043,-208.0,0.00011,2]
[352373579,1739065870052,-204.0,0.00011,2]
[352373580,1739065870062,-208.0,0.00011,2]
[352373581,1739065870071,-204.0,0.00011,2]
[352373582,1739065870081,-208.0,0.00011,2]
[352373583,1739065870093,-204.0,0.00011,2]
[352373584,1739065870110,-208.0,0.00011,2]
[352373585,1739065870118,-204.0,0.00011,2]
[352373586,1739065870127,-208.0,0.00011,2]
[352373587,1739065870138,-204.0,0.00011,2]
[352373588,1739065870147,-201.0,0.00011,2]
[352373589,1739065870157,-201.0,0.00011,2]
[352373590,1739065870167,-201.0,0.00011,2]
[352373591,1739065870177,-201.0,0.00011,2]
[352373592,1739065870188,-201.0,0.00011,2]
[352373593,1739065870197,-201.0,0.00011,2]
[352373594,1739065870209,-201.0,0.00011,2]
[352373595,1739065870218,-201.0,0.00011,2]
[352373596,1739065870228,-201.0,0.00011,2]
[352373597,1739065870238,-201.0,0.00011,2]
[352373598,1739065870248,-201.0,0.00011,2]
[352373599,1739065870257,-201.0,0.00011,2]
[352373600,1739065870267,-201.0,0.00011,2]
[352373601,1739065870276,-205.0,0.00011,2]
[352373602,1739065870285,-205.0,0.00011,2]
[352373603,1739065870294,-205.0,0.00011,2]
[352373604,1739065870303,-205.0,0.00011,2]
[352373605,1739065870312,-205.0,0.00011,2]
[352373606,1739065870322,-205.0,0.00011,2]
[352373607,1739065870331,-205.0,0.00011,2]
[352373608,1739065870340,-205.0,0.00011,2]
[352373609,1739065870349,-207.0,0.00011,2]
[352373610,1739065870358,-207.0,0.00011,2]
[352373611,1739065870368,-207.0,0.00011,2]
[352373612,1739065870377,-207.0,0.00011,2]
[352373613,1739065870432,-207.0,0.00011,2]
[352373614,1739065870441,-207.0,0.00011,2]
[352373615,1739065870450,-207.0,0.00011,2]
[352373616,1739065870458,-207.0,0.00011,2]
[352373617,1739065870467,-207.0,0.00011,2]
[352373618,1739065870477,-207.0,0.00011,2]
[352373619,1739065870488,-207.0,0.00011,2]
[352373620,1739065870498,-207.0,0.00011,2]
[352373621,1739065870507,-207.0,0.00011,2]
[352373622,1739065870516,-207.0,0.00011,2]
[352373623,1739065870526,-207.0,0.00011,2]
[352373624,1739065870535,-207.0,0.00011,2]
[352373625,1739065870545,-207.0,0.00011,2]
[352373626,1739065870554,-28171.06698483,0.00011,2]
[352373627,1739065870562,-151.0,0.00011,2]
[352373628,1739065870571,-151.0,0.00011,2]
[352373629,1739065870580,-151.0,0.00011,2]
[352373630,1739065870590,-151.0,0.00011,2]
[352373631,1739065870599,-151.0,0.00011,2]
[352373632,1739065870608,-151.0,0.00011,2]
[352373633,1739065870617,-151.0,0.00011,2]
[352373634,1739065870626,-151.0,0.00011,2]
[352373635,1739065870635,-151.0,0.00011,2]
[352373636,1739065870644,-151.0,0.00011,2]
[352373637,1739065870653,-151.0,0.00011,2]
[352373638,1739065870662,-151.0,0.00011,2]
[352373639,1739065870671,-151.0,0.00011,2]
[352373640,1739065870680,-151.0,0.00011,2]
[352373641,1739065870689,-151.0,0.00011,2]
[352373642,1739065870697,-151.0,0.00011,2]
[352373643,1739065870706,-151.0,0.00011,2]
[352373644,1739065870715,-151.0,0.00011,2]
[352373645,1739065870724,-151.0,0.00011,2]
[352373646,1739065870734,-151.0,0.00011,2]
[352373647,1739065870743,-151.0,0.00011,2]
[352373648,1739065870753,-151.0,0.00011,2]
[352373649,1739065870762,-151.0,0.00011,2]
[352373650,1739065870771,-151.0,0.00011,2]
[352373651,1739065870779,-151.0,0.00011,2]
[352373652,1739065870788,-151.0,0.00011,2]
[352373653,1739065870798,-151.0,0.00011,2]
[352373654,1739065870807,-151.0,0.00011,2]
[352373655,1739065870816,-151.0,0.00011,2]
[352373656,1739065870825,-151.0,0.00011,2]
[352373657,1739065870834,-151.0,0.00011,2]
[352373658,1739065870844,-151.0,0.00011,2]
[352373659,1739065870852,-151.0,0.00011,2]
[352373660,1739065870862,-151.0,0.00011,2]
[352373661,1739065870871,-151.0,0.00011,2]
[352373662,1739065870880,-151.0,0.00011,2]
[352373663,1739065870889,-151.0,0.00011,2]
[352373664,1739065870898,-151.0,0.00011,2]
[352373665,1739065870907,-151.0,0.00011,2]
[352373666,1739065870916,-151.0,0.00011,2]
[352373667,1739065870925,-151.0,0.00011,2]
[352373668,1739065870934,-151.0,0.00011,2]
[352373669,1739065870943,-151.0,0.00011,2]
[352373670,1739065870952,-151.0,0.00011,2]
[352373671,1739065870961,-151.0,0.00011,2]
[352373672,1739065870970,-151.0,0.00011,2]
[352373673,1739065870980,-151.0,0.00011,2]
[352373674,1739065870989,-151.0,0.00011,2]
[352373675,1739065870998,-151.0,0.00011,2]
[352373676,1739065871007,-151.0,0.00011,2]
[352373677,1739065871016,-151.0,0.00011,2]
[352373678,1739065871026,-151.0,0.00011,2]
[352373679,1739065871035,-151.0,0.00011,2]
[352373680,1739065871044,-151.0,0.00011,2]
[352373681,1739065871053,-151.0,0.00011,2]
[352373682,1739065871062,-151.0,0.00011,2]
[352373683,1739065871071,-151.0,0.00011,2]
[352373684,1739065871080,-151.0,0.00011,2]
[352373685,1739065871089,-151.0,0.00011,2]
[352373686,1739065871103,-151.0,0.00011,2]
[352373687,1739065871112,-151.0,0.00011,2]
[352373688,1739065871121,-151.0,0.00011,2]
[352373689,1739065871130,-151.0,0.00011,2]
[352373690,1739065871139,-151.0,0.00011,2]
[352373691,1739065871147,-151.0,0.00011,2]
[352373692,1739065871156,-151.0,0.00011,2]
[352373693,1739065871165,-151.0,0.00011,2]
[352373694,1739065871176,-151.0,0.00011,2]
[352373695,1739065871185,-151.0,0.00011,2]
[352373696,1739065871194,-151.0,0.00011,2]
[352373697,1739065871203,-151.0,0.00011,2]
[352373698,1739065871213,-151.0,0.00011,2]
[352373699,1739065871223,-151.0,0.00011,2]
[352373700,1739065871233,-151.0,0.00011,2]
[352373701,1739065871242,-151.0,0.00011,2]
[352373702,1739065871252,-151.0,0.00011,2]
[352373703,1739065871263,-151.0,0.00011,2]
[352373704,1739065871272,-251.0025,0.00011,2]
[352373705,1739065871280,-151.0,0.00011,2]
[352373706,1739065871289,-151.0,0.00011,2]
[352373707,1739065871299,-151.0,0.00011,2]
[352373708,1739065871308,-151.0,0.00011,2]
[352373709,1739065871317,-151.0,0.00011,2]
[352373710,1739065871326,-151.0,0.00011,2]
[352373711,1739065871335,-151.0,0.00011,2]
[352373712,1739065871344,-151.0,0.00011,2]
[352373713,1739065871353,-151.0,0.00011,2]
[352373714,1739065871363,-151.0,0.00011,2]
[352373715,1739065871372,-151.0,0.00011,2]
[352373716,1739065871381,-150.0,0.00011,2]
[352373717,1739065871390,-150.0,0.00011,2]
[352373718,1739065871399,-101676.2451499,0.00011,2]
[352373719,1739065871409,-6039.12737796,0.00011,2]
[352373720,1739065871418,-150.0,0.00011,2]
[352373721,1739065871427,-150.0,0.00011,2]
[352373722,1739065871435,-150.0,0.00011,2]
[352373723,1739065871444,-8520.6519084,0.00011,2]
[352373724,1739065871453,-558.88181447,0.00011,2]
[352373725,1739065871462,-4129.7131854,0.00011,2]
[352373726,1739065871471,-151.0,0.00011,2]
[352373727,1739065871480,-151.0,0.00011,2]
[352373728,1739065871490,-250.17820711,0.00011,2]
[352373729,1739065871500,-500.0,0.00011,2]
[352373730,1739065871509,-500.0,0.00011,2]
[352373731,1739065871518,-150.0,0.00011,2]
[352373732,1739065871527,-1678.0,0.00011,2]
[352373733,1739065871537,-151.40675742,0.00011022,2]
[352373734,1739065871546,-500.0,0.00011027,2]
[352373735,1739065871555,-500.0,0.00011027,2]
[352373736,1739065871564,-1678.0,0.00011027,2]
[352373737,1739065871573,-500.0,0.00011055,2]
[352373738,1739065871582,-500.0,0.00011055,2]
[352373739,1739065871592,-1678.0,0.00011055,2]
[352373740,1739065871601,-500.0,0.00011082,2]
[352373741,1739065871610,-500.0,0.00011082,2]
[352373742,1739065871619,-1678.0,0.00011082,2]
[352373743,1739065871629,-500.0,0.00011087,2]
[352373744,1739065871638,-847.54,0.00011087,2]
[352373745,1739065871649,-500.0,0.00011087,2]
[352373746,1739065871659,-500.0,0.00011087,2]
[352373747,1739065871668,-500.0,0.00011088,2]
[352373748,1739065871677,-777.99,0.00011088,2]
[352373749,1739065871686,-500.0,0.00011088,2]
[352373750,1739065871695,-580.08,0.00011088,2]
[352373751,1739065871704,-510.18964432,0.00011088,2]
[352373752,1739065871714,-500.0,0.00011088,2]
[352373753,1739065871723,-668.51,0.00011088,2]
[352373754,1739065871734,-500.0,0.00011088,2]
[352373755,1739065871743,-500.0,0.00011088,2]
[352373756,1739065871752,-500.0,0.00011088,2]
[352373757,1739065871762,-562.51,0.00011088,2]
[352373758,1739065871771,-730.87,0.00011088,2]
[352373759,1739065871780,-734.963011,0.00011088,2]
[352373760,1739065871790,-500.0,0.00011088,2]
[352373761,1739065871800,-518.52413359,0.00011088,2]
[352373762,1739065871809,-778.15,0.00011088,2]
[352373763,1739065871818,-828.926949,0.00011088,2]
[352373764,1739065871827,-500.0,0.00011088,2]
[352373765,1739065871837,-500.0,0.00011088,2]
[352373766,1739065871846,-500.0,0.00011088,2]
[352373767,1739065871855,-500.0,0.00011088,2]
[352373768,1739065871864,-782.31,0.00011088,2]
[352373769,1739065871874,-500.0,0.00011088,2]
[352373770,1739065871883,-500.0,0.00011088,2]
[352373771,1739065871895,-762.04,0.00011088,2]
[352373772,1739065871908,-500.0,0.00011088,2]
[352373773,1739065871918,-500.0,0.00011088,2]
[352373774,1739065871928,-513.33,0.00011088,2]
[352373775,1739065871938,-517.22657858,0.00011088,2]
[352373776,1739065871948,-500.0,0.00011088,2]
[352373777,1739065871958,-783.32,0.00011088,2]
[352373778,1739065871967,-848.63,0.00011088,2]
[352373779,1739065871976,-500.0,0.00011088,2]
[352373780,1739065871987,-503.57,0.00011088,2]
[352373781,1739065871996,-500.0,0.00011088,2]
[352373782,1739065872006,-535.45,0.00011088,2]
[352373783,1739065872015,-692.86,0.00011088,2]
[352373784,1739065872024,-685.54,0.00011088,2]
[352373785,1739065872033,-672.36,0.00011088,2]
[352373786,1739065872043,-509.98849569,0.00011088,2]
[352373787,1739065872052,-716.17,0.00011088,2]
[352373788,1739065872061,-303.47442547,0.00011088,2]
[352373789,1739065872070,-500.0,0.00011088,2]
[352373790,1739065872079,-500.0,0.00011088,2]
[352373791,1739065872088,-500.0,0.00011088,2]
[352373792,1739065872100,-1452.54,0.00011088,2]
[352373793,1739065872109,-919.49,0.00011088,2]
[352373794,1739065872118,-1599.2,0.00011088,2]
[352373795,1739065872127,-500.0,0.00011088,2]
[352373796,1739065872137,-1019.85,0.00011088,2]
[352373797,1739065872147,-1931.5,0.00011088,2]
[352373798,1739065872156,-836.62,0.00011088,2]
[352373799,1739065872166,-589.59298701,0.00011088,2]
[352373800,1739065872178,-500.0,0.00011088,2]
[352373801,1739065872188,-1850.11,0.00011088,2]
[352373802,1739065872198,-500.0,0.00011088,2]
[352373803,1739065872208,-830.1,0.00011088,2]
[352373804,1739065872216,-837.23,0.00011088,2]
[352373805,1739065872226,-1605.72,0.00011088,2]
[352373806,1739065872237,-1476.07,0.00011088,2]
[352373807,1739065872246,-2142.18,0.00011088,2]
[352373808,1739065872255,-500.0,0.00011088,2]
[352373809,1739065872265,-961.51,0.00011088,2]
[352373810,1739065872275,-525.20925469,0.00011088,2]
[352373811,1739065872284,-829.85,0.00011088,2]
[352373812,1739065872294,-1156.22,0.00011088,2]
[352373813,1739065872303,-629.87,0.00011088,2]
[352373814,1739065872312,-1910.75,0.00011088,2]
[352373815,1739065872322,-729.05,0.00011088,2]
[352373816,1739065872331,-554.99402692,0.00011088,2]
[352373817,1739065872340,-1292.26,0.00011088,2]
[352373818,1739065872350,-545.06170795,0.00011088,2]
[352373819,1739065872359,-1023.31,0.00011088,2]
[352373820,1739065872368,-500.0,0.00011088,2]
[352373821,1739065872377,-1324.77,0.00011088,2]
[352373822,1739065872386,-1235.9,0.00011088,2]
[352373823,1739065872395,-574.84,0.00011088,2]
[352373824,1739065872404,-500.0,0.00011088,2]
[352373825,1739065872413,-678.2,0.00011088,2]
[352373826,1739065872424,-1451.54,0.00011088,2]
[352373827,1739065872434,-851.41,0.00011088,2]
[352373828,1739065872443,-500.0,0.00011088,2]
[352373829,1739065872452,-608.2082855,0.00011088,2]
[352373830,1739065872461,-500.0,0.00011088,2]
[352373831,1739065872471,-1660.93,0.00011088,2]
[352373832,1739065872484,-500.0,0.00011088,2]
[352373833,1739065872493,-2348.11,0.00011088,2]
[352373834,1739065872502,-940.4,0.00011088,2]
[352373835,1739065872511,-2430.64,0.00011088,2]
[352373836,1739065872520,-3337.18,0.00011088,2]
[352373837,1739065872530,-500.0,0.00011088,2]
[352373838,1739065872540,-500.0,0.00011088,2]
[352373839,1739065872550,-1070.1,0.00011088,2]
[352373840,1739065872560,-2276.95,0.00011088,2]
[352373841,1739065872569,-672.03,0.00011088,2]
[352373842,1739065872578,-1406.86,0.00011088,2]
[352373843,1739065872588,-515.81084493,0.00011088,2]
[352373844,1739065872602,-960.92,0.00011088,2]
[352373845,1739065872612,-1197.83,0.00011088,2]
[352373846,1739065872621,-500.0,0.00011088,2]
[352373847,1739065872632,-908.43,0.00011088,2]
[352373848,1739065872642,-1585.45,0.00011088,2]
[352373849,1739065872652,-192.74306183,0.00011088,2]
[352373850,1739065872661,-669.33,0.00011088,2]
[352373851,1739065872670,-504.04,0.00011088,2]
[352373852,1739065872680,-1615.81,0.00011088,2]
[352373853,1739065872690,-532.67925119,0.00011088,2]
[352373854,1739065872699,-1554.99,0.00011088,2]
[352373855,1739065872709,-500.0,0.00011088,2]
[352373856,1739065872718,-904.99,0.00011088,2]
[352373857,1739065872727,-1316.45,0.00011088,2]
[352373858,1739065872738,-508.30343562,0.00011088,2]
[352373859,1739065872747,-500.0,0.00011088,2]
[352373860,1739065872757,-773.68,0.00011088,2]
[352373861,1739065872766,-1321.5,0.00011088,2]
[352373862,1739065872775,-563.42,0.00011088,2]
[352373863,1739065872784,-1652.3,0.00011088,2]
[352373864,1739065872793,-1176.32,0.00011088,2]
[352373865,1739065872803,-510.36251322,0.00011088,2]
[352373866,1739065872812,-2093.5,0.00011088,2]
[352373867,1739065872821,-2834.78,0.00011088,2]
[352373868,1739065872830,-1276.77,0.00011088,2]
[352373869,1739065872839,-1561.18,0.00011088,2]
[352373870,1739065872849,-605.41,0.00011088,2]
[352373871,1739065872858,-1124.08,0.00011088,2]
[352373872,1739065872867,-1196.21,0.00011088,2]
[352373873,1739065872877,-695.25,0.00011088,2]
[352373874,1739065872887,-518.29,0.00011088,2]
[352373875,1739065872896,-1471.32,0.00011088,2]
[352373876,1739065872905,-1636.79,0.00011088,2]
[352373877,1739065872914,-1949.4,0.00011088,2]
[352373878,1739065872923,-627.54,0.00011088,2]
[352373879,1739065872932,-1887.98,0.00011088,2]
[352373880,1739065872942,-1518.61,0.00011088,2]
[352373881,1739065872951,-500.0,0.00011088,2]
[352373882,1739065872961,-816.06,0.00011088,2]
[352373883,1739065872972,-500.0,0.00011088,2]
[352373884,1739065872984,-700.89,0.00011088,2]
[352373885,1739065872994,-2133.9,0.00011088,2]
[352373886,1739065873004,-565.73,0.00011088,2]
[352373887,1739065873014,-500.0,0.00011088,2]
[352373888,1739065873027,-556.57,0.00011088,2]
[352373889,1739065873036,-500.0,0.00011088,2]
[352373890,1739065873046,-2090.87,0.00011088,2]
[352373891,1739065873056,-1114.73,0.00011088,2]
[352373892,1739065873065,-2216.88,0.00011088,2]
[352373893,1739065873075,-500.0,0.00011088,2]
[352373894,1739065873085,-1425.9,0.00011088,2]
[352373895,1739065873096,-4849.59,0.00011088,2]
[352373896,1739065873107,-2088.29,0.00011088,2]
[352373897,1739065873117,-864.75,0.00011088,2]
[352373898,1739065873126,-500.0,0.00011088,2]
[352373899,1739065873135,-631.13,0.00011088,2]
[352373900,1739065873146,-500.0,0.00011088,2]
[352373901,1739065873155,-3006.06,0.00011088,2]
[352373902,1739065873164,-1354.44,0.00011088,2]
[352373903,1739065873176,-578.36062335,0.00011089,2]
[352373904,1739065873185,-500.0,0.00011089,2]
[352373905,1739065873195,-500.0,0.00011089,2]
[352373906,1739065873205,-506.13,0.00011089,2]
[352373907,1739065873214,-500.0,0.00011089,2]
[352373908,1739065873224,-500.0,0.00011089,2]
[352373909,1739065873233,-566.84408461,0.00011089,2]
[352373910,1739065873243,-500.0,0.00011089,2]
[352373911,1739065873252,-194.06612179,0.00011089,2]
[352373912,1739065873262,-421.18156481,0.00011089,2]
[352373913,1739065873272,-500.0,0.00011089,2]
[352373914,1739065873282,-500.0,0.00011089,2]
[352373915,1739065873291,-500.0,0.00011089,2]
[352373916,1739065873300,-500.0,0.00011089,2]
[352373917,1739065873310,-500.0,0.00011089,2]
[352373918,1739065873322,-500.0,0.00011089,2]
[352373919,1739065873332,-500.0,0.00011089,2]
[352373920,1739065873341,-500.0,0.00011089,2]
[352373921,1739065873350,-500.0,0.00011089,2]
[352373922,1739065873360,-500.0,0.00011089,2]
[352373923,1739065873369,-500.0,0.00011089,2]
[352373924,1739065873381,-500.0,0.00011089,2]
[352373925,1739065873392,-500.0,0.00011089,2]
[352373926,1739065873402,-500.0,0.00011089,2]
[352373927,1739065873412,-500.0,0.00011089,2]
[352373928,1739065873422,-500.0,0.00011089,2]
[352373929,1739065873431,-413.4627954,0.00011089,2]
[352373930,1739065873441,-500.0,0.00011089,2]
[352373931,1739065873451,-500.0,0.00011089,2]
[352373932,1739065873461,-517.69,0.00011089,2]
[352373933,1739065873470,-554.93,0.00011089,2]
[352373934,1739065873480,-508.9146071,0.00011089,2]
[352373935,1739065873490,-500.0,0.00011089,2]
[352373936,1739065873500,-1083.06,0.00011089,2]
[352373937,1739065873510,-500.0,0.00011089,2]
[352373938,1739065873519,-533.58,0.00011089,2]
[352373939,1739065873528,-899.57,0.00011089,2]
[352373940,1739065873538,-500.0,0.00011089,2]
[352373941,1739065873548,-2827.44,0.00011089,2]
[352373942,1739065873557,-500.0,0.00011089,2]
[352373943,1739065873567,-814.38,0.00011089,2]
[352373944,1739065873577,-1161.87,0.00011089,2]
[352373945,1739065873587,-1281.49,0.00011089,2]
[352373946,1739065873596,-1000.0,0.00011089,2]
[352373947,1739065873606,-1007.35,0.00011089,2]
[352373948,1739065873615,-500.0,0.00011089,2]
[352373949,1739065873625,-508.47736457,0.00011089,2]
[352373950,1739065873634,-509.69945751,0.00011089,2]
[352373951,1739065873643,-1979.78,0.00011089,2]
[352373952,1739065873653,-238.86777604,0.00011089,2]
[352373953,1739065873662,-2191.6,0.00011089,2]
[352373954,1739065873672,-500.0,0.00011089,2]
[352373955,1739065873682,-506.50210652,0.00011089,2]
[352373956,1739065873691,-645.22650619,0.00011089,2]
[352373957,1739065873701,-304.94371259,0.00011098,2]
[352373958,1739065873711,-75017.90652357,0.00011099,2]
[352373959,1739065873720,-75017.90652348,0.00011099,2]
[352373960,1739065873730,-75017.90652348,0.00011099,2]
[352373961,1739065873740,-75017.90652348,0.00011099,2]
[352373962,1739065873750,-75017.90652348,0.00011099,2]
[352373963,1739065873760,-75017.90652348,0.00011099,2]
[352373964,1739065873769,-75017.90652348,0.00011099,2]
[352373965,1739065873779,-91074.35849166,0.00011099,2]
[352373966,1739065873789,-91074.3584916,0.00011099,2]
[352373967,1739065873799,-91074.3584916,0.00011099,2]
[352373968,1739065873808,-91074.3584916,0.00011099,2]
[352373969,1739065873817,-91074.3584916,0.00011099,2]
[352373970,1739065873827,-91074.3584916,0.00011099,2]
[352373971,1739065873836,-151.0,0.00011099,2]
[352373972,1739065873846,-151.0,0.00011099,2]
[352373973,1739065873855,-151.0,0.00011099,2]
[352373974,1739065873864,-151.0,0.00011099,2]
[352373975,1739065873874,-151.0,0.00011099,2]
[352373976,1739065873883,-181.87772,0.00011099,2]
[352373977,1739065873893,-151.0,0.00011099,2]
[352373978,1739065873903,-151.0,0.00011099,2]
[352373979,1739065873914,-151.0,0.00011099,2]
[352373980,1739065873923,-151.56051,0.00011099,2]
[352373981,1739065873933,-152.423402,0.00011099,2]
[352373982,1739065873943,-1000.0,0.00011104,2]
[352373983,1739065873952,-196.188216,0.00011104,2]
[352373984,1739065873962,-166.897758,0.00011104,2]
[352373985,1739065873971,-500.0,0.0001111,2]
[352373986,1739065873981,-602.05049988,0.0001111,2]
[352373987,1739065873991,-1678.0,0.0001111,2]
[352373988,1739065874000,-545.9,0.00011136,2]
[352373989,1739065874009,-688.58354603,0.00011137,2]
[352373990,1739065874020,-1678.0,0.00011137,2]
[352373991,1739065874030,-1678.0,0.00011164,2]